[Event "FIDE Grand Swiss 2023"]
[Site "Villa Marina, Douglas, Isle of Man"]
[Date "2023.10.29"]
[Round "5.44"]
[White "Kozak, Adam"]
[Black "Aryan, Chopra"]
[Result "0-1"]
[WhiteElo "2566"]
[BlackElo "2634"]
[EventDate "2023.10.25"]
[ECO "D35"]
[PlyCount "92"]
[BlackFideId "5084423"]
[TimeControl "40/100 + 20/50 + 15 + 30s/move"]
[WhiteFideId "753246"]

1.d4 {[%clk 01:40:40] [%emt 00:00:19]} 1...Nf6 {[%clk 01:40:50] [%emt 00:00:10]} 
2.c4 {[%clk 01:40:49] [%emt 00:00:21]} 2...e6 {[%clk 01:41:15] [%emt 00:00:05]} 
3.Nc3 {[%clk 01:39:19] [%emt 00:02:00]} 3...d5 {[%clk 01:41:39] [%emt 00:00:06]} 
4.cxd5 {[%clk 01:37:52] [%emt 00:01:57]} 4...exd5 {[%clk 01:42:03] [%emt
00:00:06]} 5.Bg5 {[%clk 01:34:20] [%emt 00:04:02]} 5...Bb4 {[%clk 01:42:22]
[%emt 00:00:11]} 6.e3 {[%clk 01:25:00] [%emt 00:09:51]} 6...h6 {[%clk 01:42:40]
[%emt 00:00:12]} 7.Bxf6 {[%clk 01:24:23] [%emt 00:01:07]} 7...Qxf6 {[%clk
01:43:04] [%emt 00:00:06]} 8.a3 {[%clk 01:24:37] [%emt 00:00:16]} 8...Bxc3+ 
{[%clk 01:42:52] [%emt 00:00:42]} 9.bxc3 {[%clk 01:25:01] [%emt 00:00:05]} 
9...O-O {[%clk 01:41:50] [%emt 00:01:33]} 10.Bd3 {[%clk 01:23:46] [%emt
00:01:44]} 10...Bf5 {[%clk 01:33:12] [%emt 00:09:08]} 11.Ne2 {[%clk 01:21:41]
[%emt 00:02:34]} 11...Bxd3 {[%clk 01:30:47] [%emt 00:02:57]} 12.Qxd3 {[%clk
01:22:01] [%emt 00:00:08]} 12...Nd7 {[%clk 01:31:11] [%emt 00:00:07]} 13.O-O 
{[%clk 01:18:13] [%emt 00:04:17]} 13...Nb6 {[%clk 01:30:43] [%emt 00:00:59]} 
14.f3 {[%clk 01:14:04] [%emt 00:04:39]} 14...Rfe8 {[%clk 01:15:55] [%emt
00:15:18]} 15.e4 {[%clk 01:11:46] [%emt 00:02:49]} 15...Qg6 {[%clk 01:15:40]
[%emt 00:00:44]} 16.Ng3 {[%clk 01:10:33] [%emt 00:01:43]} 16...Nc4 {[%clk
01:16:03] [%emt 00:00:07]} 17.a4 {[%clk 00:58:53] [%emt 00:12:11]} 17...Nd6 
{[%clk 01:11:42] [%emt 00:04:50]} 18.Rfe1 {[%clk 00:41:02] [%emt 00:18:20]} 
18...h5 {[%clk 01:12:00] [%emt 00:00:13]} 19.Qc2 {[%clk 00:28:20] [%emt
00:13:12]} 19...h4 {[%clk 01:05:45] [%emt 00:06:45]} 20.Nf5 {[%clk 00:27:54]
[%emt 00:00:57]} 20...Nxf5 {[%clk 01:05:21] [%emt 00:00:53]} 21.exf5 {[%clk
00:28:16] [%emt 00:00:08]} 21...Qg5 {[%clk 01:00:20] [%emt 00:05:31]} 22.Kf2 
{[%clk 00:19:48] [%emt 00:08:58]} 22...Qf4 {[%clk 00:53:09] [%emt 00:07:42]} 
23.g3 {[%clk 00:20:04] [%emt 00:00:13]} 23...Qh6 {[%clk 00:53:10] [%emt
00:00:28]} 24.Kg2 {[%clk 00:19:04] [%emt 00:01:31]} 24...Re3 {[%clk 00:52:32]
[%emt 00:01:08]} 25.f4 {[%clk 00:07:09] [%emt 00:12:26]} 25...Rae8 {[%clk
00:51:38] [%emt 00:01:24]} 26.Qd2 {[%clk 00:07:33] [%emt 00:00:06]} 26...R3e4 
{[%clk 00:50:12] [%emt 00:01:55]} 27.g4 {[%clk 00:07:28] [%emt 00:00:36]} 
27...g6 {[%clk 00:20:41] [%emt 00:30:00]} 28.Rxe4 {[%clk 00:03:38] [%emt
00:04:20]} 28...Rxe4 {[%clk 00:21:05] [%emt 00:00:06]} 29.fxg6 {[%clk 00:04:01]
[%emt 00:00:07]} 29...f5 {[%clk 00:11:33] [%emt 00:10:02]} 30.h3 {[%clk
00:01:00] [%emt 00:03:31]} 30...fxg4 {[%clk 00:11:06] [%emt 00:00:57]} 31.hxg4 
{[%clk 00:01:20] [%emt 00:00:10]} 31...Rxf4 {[%clk 00:11:29] [%emt 00:00:07]} 
32.Kh2 {[%clk 00:00:34] [%emt 00:01:16]} 32...Qf8 {[%clk 00:11:27] [%emt
00:00:33]} 33.Kh1 {[%clk 00:00:32] [%emt 00:00:32]} 33...Rxg4 {[%clk 00:02:36]
[%emt 00:09:21]} 34.Qe2 {[%clk 00:00:45] [%emt 00:00:16]} 34...Qf5 {[%clk
00:02:05] [%emt 00:01:01]} 35.Rf1 {[%clk 00:00:32] [%emt 00:00:44]} 35...Qe4+ 
{[%clk 00:02:31] [%emt 00:00:04]} 36.Qxe4 {[%clk 00:00:55] [%emt 00:00:06]} 
36...dxe4 {[%clk 00:02:58] [%emt 00:00:04]} 37.Rf7 {[%clk 00:00:33] [%emt
00:00:51]} 37...Rxg6 {[%clk 00:01:47] [%emt 00:01:41]} 38.Rxc7 {[%clk 00:00:59]
[%emt 00:00:04]} 38...Rg7 {[%clk 00:01:01] [%emt 00:01:17]} 39.Rc8+ {[%clk
00:00:42] [%emt 00:00:47]} 39...Kf7 {[%clk 00:01:26] [%emt 00:00:04]} 40.Rh8 
{[%clk 00:00:33] [%emt 00:00:40]} 40...Ke6 {[%clk 00:00:43] [%emt 00:01:13]} 
41.Rh5 {[%clk 00:38:25] [%emt 00:12:37]} 41...Kf6 {[%clk 00:47:40] [%emt
00:03:34]} 42.Rxh4 {[%clk 00:29:26] [%emt 00:09:29]} 42...Kf5 {[%clk 00:47:48]
[%emt 00:00:22]} 43.Rh8 {[%clk 00:29:07] [%emt 00:00:48]} 43...e3 {[%clk
00:45:27] [%emt 00:02:52]} 44.d5 {[%clk 00:24:31] [%emt 00:05:06]} 44...Ke4 
{[%clk 00:40:09] [%emt 00:05:48]} 45.d6 {[%clk 00:22:04] [%emt 00:02:56]} 
45...e2 {[%clk 00:40:27] [%emt 00:00:12]} 46.Re8+ {[%clk 00:22:26] [%emt
00:00:08]} 46...Kd3 {[%clk 00:40:37] [%emt 00:00:20]} 0-1

[Event "FIDE Grand Swiss 2023"]
[Site "Villa Marina, Douglas, Isle of Man"]
[Date "2023.10.29"]
[Round "5.45"]
[White "Lazavik, Denis"]
[Black "Idani, Pouya"]
[Result "1/2-1/2"]
[WhiteElo "2560"]
[BlackElo "2633"]
[EventDate "2023.10.25"]
[ECO "D41"]
[PlyCount "62"]
[BlackFideId "12510130"]
[TimeControl "40/100 + 20/50 + 15 + 30s/move"]
[WhiteFideId "13515110"]

1.d4 {[%clk 01:40:50] [%emt 00:00:08]} 1...Nf6 {[%clk 01:40:26] [%emt 00:00:36]} 
2.c4 {[%clk 01:41:06] [%emt 00:00:13]} 2...e6 {[%clk 01:40:52] [%emt 00:00:04]} 
3.Nf3 {[%clk 01:41:21] [%emt 00:00:15]} 3...d5 {[%clk 01:41:18] [%emt 00:00:04]} 
4.Nc3 {[%clk 01:41:31] [%emt 00:00:20]} 4...c5 {[%clk 01:41:38] [%emt 00:00:10]} 
5.cxd5 {[%clk 01:41:38] [%emt 00:00:23]} 5...exd5 {[%clk 01:42:05] [%emt
00:00:04]} 6.Bg5 {[%clk 01:41:10] [%emt 00:00:58]} 6...Be6 {[%clk 01:42:30]
[%emt 00:00:05]} 7.g3 {[%clk 01:39:07] [%emt 00:02:32]} 7...Nc6 {[%clk 01:42:55]
[%emt 00:00:05]} 8.Bg2 {[%clk 01:38:49] [%emt 00:00:48]} 8...h6 {[%clk 01:43:22]
[%emt 00:00:04]} 9.Bxf6 {[%clk 01:39:03] [%emt 00:00:15]} 9...Qxf6 {[%clk
01:43:48] [%emt 00:00:04]} 10.O-O {[%clk 01:39:01] [%emt 00:00:32]} 10...O-O-O 
{[%clk 01:44:16] [%emt 00:00:03]} 11.Qa4 {[%clk 01:38:37] [%emt 00:00:53]} 
11...Kb8 {[%clk 01:42:55] [%emt 00:01:52]} 12.Rad1 {[%clk 01:38:07] [%emt
00:00:59]} 12...g5 {[%clk 01:42:28] [%emt 00:00:57]} 13.e4 {[%clk 01:36:02]
[%emt 00:02:35]} 13...g4 {[%clk 01:42:46] [%emt 00:00:12]} 14.Ne5 {[%clk
01:33:54] [%emt 00:02:38]} 14...Nxd4 {[%clk 01:43:10] [%emt 00:00:07]} 15.exd5 
{[%clk 01:33:01] [%emt 00:01:22]} 15...Qxe5 {[%clk 01:43:35] [%emt 00:00:06]} 
16.dxe6 {[%clk 01:32:44] [%emt 00:00:47]} 16...Qxe6 {[%clk 01:44:00] [%emt
00:00:05]} 17.Nb5 {[%clk 01:26:53] [%emt 00:06:20]} 17...Qa6 {[%clk 01:44:12]
[%emt 00:00:19]} 18.Qb3 {[%clk 01:26:50] [%emt 00:00:33]} 18...Qb6 {[%clk
01:44:36] [%emt 00:00:05]} 19.Nxd4 {[%clk 01:24:47] [%emt 00:02:33]} 19...cxd4 
{[%clk 01:45:02] [%emt 00:00:05]} 20.Qxf7 {[%clk 01:24:17] [%emt 00:01:00]} 
20...d3 {[%clk 01:45:27] [%emt 00:00:05]} 21.Bd5 {[%clk 01:11:35] [%emt
00:13:11]} 21...Bc5 {[%clk 01:45:52] [%emt 00:00:06]} 22.Qf4+ {[%clk 00:57:26]
[%emt 00:14:38]} 22...Qd6 {[%clk 01:31:10] [%emt 00:15:13]} 23.Qxd6+ {[%clk
00:57:05] [%emt 00:00:51]} 23...Rxd6 {[%clk 01:31:36] [%emt 00:00:04]} 24.Rxd3 
{[%clk 00:57:29] [%emt 00:00:06]} 24...Rhd8 {[%clk 01:30:13] [%emt 00:01:53]} 
25.Rfd1 {[%clk 00:57:50] [%emt 00:00:08]} 25...Rf8 {[%clk 01:30:28] [%emt
00:00:16]} 26.R3d2 {[%clk 00:57:21] [%emt 00:00:59]} 26...Rdf6 {[%clk 01:26:30]
[%emt 00:04:28]} 27.Rf1 {[%clk 00:57:30] [%emt 00:00:21]} 27...Rd6 {[%clk
01:25:52] [%emt 00:01:08]} 28.Kg2 {[%clk 00:51:42] [%emt 00:06:16]} 28...Rf5 
{[%clk 01:26:16] [%emt 00:00:08]} 29.Rfd1 {[%clk 00:52:02] [%emt 00:00:09]} 
29...Rdf6 {[%clk 01:26:42] [%emt 00:00:04]} 30.Rf1 {[%clk 00:52:22] [%emt
00:00:10]} 30...Rd6 {[%clk 01:27:09] [%emt 00:00:03]} 31.Rfd1 {[%clk 00:52:40]
[%emt 00:00:12]} 31...Rdf6 {[%clk 01:27:34] [%emt 00:00:06]} 1/2-1/2

[Event "FIDE Grand Swiss 2023"]
[Site "Villa Marina, Douglas, Isle of Man"]
[Date "2023.10.29"]
[Round "5.46"]
[White "Theodorou, Nikolas"]
[Black "Vokhidov, Shamsiddin"]
[Result "1/2-1/2"]
[WhiteElo "2619"]
[BlackElo "2578"]
[EventDate "2023.10.25"]
[ECO "A29"]
[PlyCount "85"]
[BlackFideId "14204223"]
[TimeControl "40/100 + 20/50 + 15 + 30s/move"]
[WhiteFideId "4262875"]

1.c4 {[%clk 01:40:55] [%emt 00:00:04]} 1...Nf6 {[%clk 01:40:46] [%emt 00:00:15]} 
2.Nc3 {[%clk 01:40:45] [%emt 00:00:41]} 2...e5 {[%clk 01:41:10] [%emt 00:00:06]} 
3.Nf3 {[%clk 01:40:56] [%emt 00:00:19]} 3...Nc6 {[%clk 01:41:35] [%emt
00:00:05]} 4.g3 {[%clk 01:41:20] [%emt 00:00:05]} 4...d5 {[%clk 01:41:05] [%emt
00:00:59]} 5.cxd5 {[%clk 01:41:45] [%emt 00:00:06]} 5...Nxd5 {[%clk 01:41:33]
[%emt 00:00:03]} 6.Bg2 {[%clk 01:42:09] [%emt 00:00:06]} 6...Bc5 {[%clk
01:41:53] [%emt 00:00:09]} 7.O-O {[%clk 01:40:58] [%emt 00:01:41]} 7...O-O 
{[%clk 01:41:50] [%emt 00:00:33]} 8.d3 {[%clk 01:39:07] [%emt 00:02:21]} 8...h6 
{[%clk 01:41:03] [%emt 00:01:17]} 9.Bd2 {[%clk 01:37:13] [%emt 00:02:25]} 
9...Nf6 {[%clk 01:40:02] [%emt 00:01:31]} 10.Rc1 {[%clk 01:34:40] [%emt
00:03:03]} 10...Re8 {[%clk 01:36:27] [%emt 00:04:04]} 11.a3 {[%clk 01:30:23]
[%emt 00:04:47]} 11...Nd4 {[%clk 01:28:35] [%emt 00:08:22]} 12.Na4 {[%clk
01:24:23] [%emt 00:06:30]} 12...Bd6 {[%clk 01:19:18] [%emt 00:09:47]} 13.Nc3 
{[%clk 01:19:28] [%emt 00:05:25]} 13...c6 {[%clk 01:11:28] [%emt 00:08:19]} 
14.Nxd4 {[%clk 01:14:52] [%emt 00:05:07]} 14...exd4 {[%clk 01:11:46] [%emt
00:00:12]} 15.Ne4 {[%clk 01:15:19] [%emt 00:00:03]} 15...Bf5 {[%clk 01:06:26]
[%emt 00:05:49]} 16.Nxd6 {[%clk 01:05:37] [%emt 00:10:13]} 16...Qxd6 {[%clk
01:06:32] [%emt 00:00:24]} 17.Re1 {[%clk 01:06:01] [%emt 00:00:07]} 17...Qd7 
{[%clk 01:05:31] [%emt 00:01:30]} 18.Qb3 {[%clk 01:03:57] [%emt 00:02:34]} 
18...Bg4 {[%clk 00:58:26] [%emt 00:07:35]} 19.e4 {[%clk 00:57:21] [%emt
00:07:06]} 19...dxe3 {[%clk 00:58:43] [%emt 00:00:13]} 20.Bxe3 {[%clk 00:57:49]
[%emt 00:00:02]} 20...Bh3 {[%clk 00:56:43] [%emt 00:02:30]} 21.Bh1 {[%clk
00:57:19] [%emt 00:00:59]} 21...Be6 {[%clk 00:56:01] [%emt 00:01:13]} 22.Qc3 
{[%clk 00:57:46] [%emt 00:00:03]} 22...Bd5 {[%clk 00:55:00] [%emt 00:01:30]} 
23.f3 {[%clk 00:58:14] [%emt 00:00:02]} 23...Nh7 {[%clk 00:42:37] [%emt
00:12:53]} 24.h4 {[%clk 00:51:50] [%emt 00:06:55]} 24...Nf8 {[%clk 00:38:22]
[%emt 00:04:45]} 25.Bf2 {[%clk 00:49:29] [%emt 00:02:50]} 25...Ne6 {[%clk
00:33:50] [%emt 00:05:03]} 26.Bg2 {[%clk 00:49:43] [%emt 00:00:16]} 26...a5 
{[%clk 00:33:26] [%emt 00:00:54]} 27.Re5 {[%clk 00:49:10] [%emt 00:01:03]} 
27...f6 {[%clk 00:24:17] [%emt 00:09:39]} 28.Re2 {[%clk 00:49:10] [%emt
00:00:30]} 28...c5 {[%clk 00:22:07] [%emt 00:02:41]} 29.Rce1 {[%clk 00:45:07]
[%emt 00:04:32]} 29...b6 {[%clk 00:21:01] [%emt 00:01:36]} 30.Bh3 {[%clk
00:42:44] [%emt 00:02:54]} 30...Qd6 {[%clk 00:18:07] [%emt 00:03:23]} 31.Kh2 
{[%clk 00:33:41] [%emt 00:09:33]} 31...Nc7 {[%clk 00:15:33] [%emt 00:03:04]} 
32.Rxe8+ {[%clk 00:25:52] [%emt 00:08:18]} 32...Rxe8 {[%clk 00:15:57] [%emt
00:00:06]} 33.Rxe8+ {[%clk 00:25:42] [%emt 00:00:41]} 33...Nxe8 {[%clk 00:16:25]
[%emt 00:00:02]} 34.b3 {[%clk 00:25:22] [%emt 00:00:50]} 34...Be6 {[%clk
00:08:26] [%emt 00:08:29]} 35.Bf1 {[%clk 00:18:33] [%emt 00:07:18]} 35...Qd5 
{[%clk 00:08:30] [%emt 00:00:27]} 36.d4 {[%clk 00:18:51] [%emt 00:00:12]} 
36...cxd4 {[%clk 00:08:46] [%emt 00:00:13]} 37.Bxd4 {[%clk 00:18:41] [%emt
00:00:40]} 37...b5 {[%clk 00:08:09] [%emt 00:01:08]} 38.Bc5 {[%clk 00:14:51]
[%emt 00:04:21]} 38...b4 {[%clk 00:08:07] [%emt 00:00:31]} 39.axb4 {[%clk
00:14:52] [%emt 00:00:29]} 39...axb4 {[%clk 00:08:35] [%emt 00:00:02]} 40.Bxb4 
{[%clk 00:12:42] [%emt 00:02:39]} 40...Qxb3 {[%clk 00:09:01] [%emt 00:00:05]} 
41.Qc5 {[%clk 00:11:31] [%emt 00:01:41]} 41...Kh7 {[%clk 00:02:35] [%emt
00:06:55]} 42.Qc3 {[%clk 00:03:25] [%emt 00:08:36]} 42...Qxc3 {[%clk 00:02:45]
[%emt 00:00:21]} 43.Bxc3 {[%clk 00:03:17] [%emt 00:00:06]} 1/2-1/2

[Event "FIDE Grand Swiss 2023"]
[Site "Villa Marina, Douglas, Isle of Man"]
[Date "2023.10.29"]
[Round "5.47"]
[White "Ter-Sahakyan, Samvel"]
[Black "Fawzy, Adham"]
[Result "1-0"]
[WhiteElo "2618"]
[BlackElo "2535"]
[EventDate "2023.10.25"]
[ECO "B31"]
[PlyCount "87"]
[BlackFideId "10613129"]
[TimeControl "40/100 + 20/50 + 15 + 30s/move"]
[WhiteFideId "13302531"]

1.e4 {[%clk 01:40:50] [%emt 00:00:09]} 1...c5 {[%clk 01:40:53] [%emt 00:00:08]} 
2.Nf3 {[%clk 01:41:14] [%emt 00:00:06]} 2...Nc6 {[%clk 01:41:17] [%emt
00:00:05]} 3.Bb5 {[%clk 01:40:38] [%emt 00:01:06]} 3...g6 {[%clk 01:41:38] [%emt
00:00:10]} 4.O-O {[%clk 01:40:45] [%emt 00:00:22]} 4...Bg7 {[%clk 01:42:00]
[%emt 00:00:08]} 5.c3 {[%clk 01:40:50] [%emt 00:00:26]} 5...e5 {[%clk 01:42:11]
[%emt 00:00:19]} 6.d3 {[%clk 01:33:25] [%emt 00:07:54]} 6...Nge7 {[%clk
01:39:23] [%emt 00:03:18]} 7.Be3 {[%clk 01:33:42] [%emt 00:00:14]} 7...d6 
{[%clk 01:33:55] [%emt 00:05:59]} 8.d4 {[%clk 01:33:53] [%emt 00:00:18]} 
8...exd4 {[%clk 01:32:20] [%emt 00:02:04]} 9.cxd4 {[%clk 01:34:02] [%emt
00:00:22]} 9...O-O {[%clk 01:32:06] [%emt 00:00:44]} 10.Nc3 {[%clk 01:28:53]
[%emt 00:05:39]} 10...Qb6 {[%clk 01:29:06] [%emt 00:03:25]} 11.Bxc6 {[%clk
01:27:26] [%emt 00:02:02]} 11...Nxc6 {[%clk 01:26:10] [%emt 00:03:25]} 12.Rb1 
{[%clk 01:26:38] [%emt 00:01:18]} 12...Bg4 {[%clk 01:16:18] [%emt 00:10:22]} 
13.Nd5 {[%clk 00:46:58] [%emt 00:40:11]} 13...Qa5 {[%clk 01:16:00] [%emt
00:00:48]} 14.dxc5 {[%clk 00:47:19] [%emt 00:00:09]} 14...dxc5 {[%clk 01:16:14]
[%emt 00:00:16]} 15.Qb3 {[%clk 00:42:48] [%emt 00:05:01]} 15...Bxf3 {[%clk
01:03:24] [%emt 00:13:20]} 16.gxf3 {[%clk 00:42:56] [%emt 00:00:21]} 16...b6 
{[%clk 01:03:41] [%emt 00:00:13]} 17.Kg2 {[%emt 00:12:55]} 17...Rae8 {[%clk
00:56:51]} 18.h4 {[%clk 00:35:24] [%emt 00:02:56]} 18...h5 {[%clk 00:50:28]
[%emt 00:06:54]} 19.Rbd1 {[%clk 00:29:29] [%emt 00:06:25]} 19...Qa6 {[%clk
00:40:14] [%emt 00:10:43]} 20.Nc7 {[%clk 00:27:36] [%emt 00:02:23]} 20...c4 
{[%clk 00:40:29] [%emt 00:00:16]} 21.Nxa6 {[%clk 00:16:23] [%emt 00:11:43]} 
21...cxb3 {[%clk 00:38:42] [%emt 00:02:16]} 22.axb3 {[%clk 00:16:52] [%emt
00:00:02]} 22...Rc8 {[%clk 00:36:03] [%emt 00:03:08]} 23.Rd7 {[%clk 00:13:13]
[%emt 00:04:09]} 23...Bxb2 {[%clk 00:33:28] [%emt 00:03:05]} 24.b4 {[%clk
00:13:32] [%emt 00:00:12]} 24...Rfd8 {[%clk 00:31:59] [%emt 00:01:59]} 25.Rfd1 
{[%clk 00:10:38] [%emt 00:03:24]} 25...Bf6 {[%clk 00:31:16] [%emt 00:01:12]} 
26.R1d5 {[%clk 00:10:18] [%emt 00:00:50]} 26...Bxh4 {[%clk 00:20:06] [%emt
00:11:40]} 27.f4 {[%clk 00:10:39] [%emt 00:00:10]} 27...Rxd7 {[%clk 00:13:21]
[%emt 00:07:15]} 28.Rxd7 {[%clk 00:11:07] [%emt 00:00:01]} 28...Re8 {[%clk
00:09:08] [%emt 00:04:44]} 29.Rc7 {[%clk 00:09:51] [%emt 00:01:45]} 29...Re6 
{[%clk 00:05:43] [%emt 00:03:56]} 30.Kh3 {[%clk 00:07:16] [%emt 00:03:05]} 
30...Bd8 {[%clk 00:04:46] [%emt 00:01:27]} 31.Rc8 {[%clk 00:04:12] [%emt
00:03:33]} 31...Rd6 {[%clk 00:04:26] [%emt 00:00:51]} 32.b5 {[%clk 00:03:11]
[%emt 00:01:32]} 32...Na5 {[%clk 00:01:47] [%emt 00:03:09]} 33.Nb4 {[%clk
00:02:13] [%emt 00:01:27]} 33...Kf8 {[%clk 00:00:42] [%emt 00:01:35]} 34.Ra8 
{[%clk 00:01:04] [%emt 00:01:39]} 34...Rd7 {[%clk 00:00:35] [%emt 00:00:37]} 
35.Nc6 {[%clk 00:01:09] [%emt 00:00:25]} 35...Ke8 {[%clk 00:01:04] [%emt
00:00:01]} 36.Bd4 {[%clk 00:00:53] [%emt 00:00:46]} 36...f5 {[%clk 00:00:32]
[%emt 00:01:01]} 37.Bf6 {[%clk 00:00:45] [%emt 00:00:39]} 37...fxe4 {[%clk
00:00:38] [%emt 00:00:24]} 38.Nxd8 {[%clk 00:00:44] [%emt 00:00:31]} 38...Rd5 
{[%clk 00:00:35] [%emt 00:00:33]} 39.Rxa7 {[%clk 00:00:45] [%emt 00:00:29]} 
39...Rf5 {[%clk 00:00:41] [%emt 00:00:25]} 40.Bg5 {[%clk 00:00:43] [%emt
00:00:31]} 40...Rxb5 {[%clk 00:00:36] [%emt 00:00:36]} 41.Re7+ {[%clk 00:50:07]
[%emt 00:01:04]} 41...Kf8 {[%clk 00:51:01] [%emt 00:00:06]} 42.Ne6+ {[%clk
00:50:29] [%emt 00:00:08]} 42...Kg8 {[%clk 00:51:22] [%emt 00:00:09]} 43.Rg7+ 
{[%clk 00:50:49] [%emt 00:00:10]} 43...Kh8 {[%clk 00:51:51] [%emt 00:00:02]} 
44.Bf6 {[%clk 00:50:57] [%emt 00:00:21]} 1-0

[Event "FIDE Grand Swiss 2023"]
[Site "Villa Marina, Douglas, Isle of Man"]
[Date "2023.10.29"]
[Round "5.48"]
[White "Royal, Shreyas"]
[Black "Karthikeyan, Murali"]
[Result "1/2-1/2"]
[WhiteElo "2407"]
[BlackElo "2611"]
[EventDate "2023.10.25"]
[ECO "E11"]
[PlyCount "93"]
[BlackFideId "5074452"]
[TimeControl "40/100 + 20/50 + 15 + 30s/move"]
[WhiteFideId "448869"]

1.d4 {[%clk 01:40:51] [%emt 00:00:07]} 1...Nf6 {[%clk 01:40:48] [%emt 00:00:13]} 
2.c4 {[%clk 01:41:14] [%emt 00:00:07]} 2...e6 {[%clk 01:41:12] [%emt 00:00:06]} 
3.Nf3 {[%clk 01:41:39] [%emt 00:00:06]} 3...d5 {[%clk 01:41:36] [%emt 00:00:05]} 
4.g3 {[%clk 01:41:21] [%emt 00:00:48]} 4...Bb4+ {[%clk 01:41:48] [%emt
00:00:18]} 5.Bd2 {[%clk 01:41:44] [%emt 00:00:06]} 5...Be7 {[%clk 01:42:12]
[%emt 00:00:06]} 6.Bg2 {[%clk 01:42:09] [%emt 00:00:05]} 6...O-O {[%clk
01:42:34] [%emt 00:00:09]} 7.O-O {[%clk 01:42:34] [%emt 00:00:05]} 7...c6 
{[%clk 01:42:54] [%emt 00:00:09]} 8.Qc2 {[%clk 01:42:58] [%emt 00:00:06]} 
8...a5 {[%clk 01:43:10] [%emt 00:00:16]} 9.Bf4 {[%clk 01:41:27] [%emt 00:02:00]} 
9...Nbd7 {[%clk 01:43:30] [%emt 00:00:10]} 10.Rd1 {[%clk 01:41:38] [%emt
00:00:19]} 10...a4 {[%clk 01:43:33] [%emt 00:00:26]} 11.a3 {[%clk 01:38:37]
[%emt 00:03:32]} 11...Ne4 {[%clk 01:42:15] [%emt 00:01:48]} 12.Nc3 {[%clk
01:38:34] [%emt 00:00:33]} 12...Nxc3 {[%clk 01:41:46] [%emt 00:00:59]} 13.Qxc3 
{[%clk 01:38:57] [%emt 00:00:07]} 13...Nb6 {[%clk 01:38:57] [%emt 00:03:19]} 
14.Nd2 {[%clk 01:38:46] [%emt 00:00:41]} 14...g5 {[%clk 01:34:29] [%emt
00:04:58]} 15.Be3 {[%clk 01:38:52] [%emt 00:00:24]} 15...f5 {[%clk 01:33:58]
[%emt 00:01:01]} 16.c5 {[%clk 01:38:43] [%emt 00:00:39]} 16...Nd7 {[%clk
01:33:41] [%emt 00:00:46]} 17.Nf3 {[%clk 01:38:48] [%emt 00:00:25]} 17...Bf6 
{[%clk 01:23:57] [%emt 00:10:14]} 18.Rab1 {[%clk 01:28:03] [%emt 00:11:16]} 
18...Qe7 {[%clk 01:11:13] [%emt 00:13:14]} 19.Ne5 {[%clk 01:24:37] [%emt
00:03:54]} 19...Qg7 {[%clk 01:07:52] [%emt 00:03:53]} 20.f4 {[%clk 01:20:40]
[%emt 00:04:27]} 20...Bd8 {[%clk 01:01:58] [%emt 00:06:24]} 21.b3 {[%clk
00:56:13] [%emt 00:24:58]} 21...Nxe5 {[%clk 00:56:23] [%emt 00:06:04]} 22.dxe5 
{[%clk 00:56:11] [%emt 00:00:32]} 22...axb3 {[%clk 00:55:54] [%emt 00:00:59]} 
23.Rxb3 {[%clk 00:52:02] [%emt 00:04:39]} 23...Kh8 {[%clk 00:49:21] [%emt
00:07:03]} 24.Kh1 {[%clk 00:42:51] [%emt 00:09:41]} 24...Rg8 {[%clk 00:45:18]
[%emt 00:04:33]} 25.Bf3 {[%clk 00:40:58] [%emt 00:02:23]} 25...Ra7 {[%clk
00:43:23] [%emt 00:02:24]} 26.Rdb1 {[%clk 00:39:32] [%emt 00:01:56]} 26...Qh6 
{[%clk 00:39:01] [%emt 00:04:52]} 27.Qb4 {[%clk 00:30:51] [%emt 00:09:12]} 
27...gxf4 {[%clk 00:32:00] [%emt 00:07:30]} 28.gxf4 {[%clk 00:28:28] [%emt
00:02:54]} 28...Rg6 {[%clk 00:25:42] [%emt 00:06:48]} 29.Bf2 {[%clk 00:19:46]
[%emt 00:09:11]} 29...Rg7 {[%clk 00:18:44] [%emt 00:07:28]} 30.Qd4 {[%clk
00:15:31] [%emt 00:04:46]} 30...Be7 {[%clk 00:12:37] [%emt 00:06:37]} 31.a4 
{[%clk 00:13:49] [%emt 00:02:12]} 31...Rg8 {[%clk 00:12:16] [%emt 00:00:52]} 
32.Rg1 {[%clk 00:11:03] [%emt 00:03:16]} 32...Rxg1+ {[%clk 00:11:54] [%emt
00:00:51]} 33.Bxg1 {[%clk 00:11:32] [%emt 00:00:02]} 33...Qf8 {[%clk 00:12:08]
[%emt 00:00:16]} 34.Qb4 {[%clk 00:10:09] [%emt 00:01:53]} 34...Qd8 {[%clk
00:12:08] [%emt 00:00:29]} 35.Qd4 {[%clk 00:07:06] [%emt 00:03:35]} 35...Ra5 
{[%clk 00:08:31] [%emt 00:04:06]} 36.Qb4 {[%clk 00:07:34] [%emt 00:00:01]} 
36...Ra6 {[%clk 00:07:00] [%emt 00:02:01]} 37.Qd4 {[%clk 00:07:51] [%emt
00:00:13]} 37...Qa5 {[%clk 00:04:50] [%emt 00:02:40]} 38.Rb4 {[%clk 00:07:00]
[%emt 00:01:22]} 38...Qd8 {[%clk 00:04:58] [%emt 00:00:22]} 39.Rb3 {[%clk
00:05:18] [%emt 00:02:12]} 39...Ra5 {[%clk 00:04:57] [%emt 00:00:31]} 40.Qb4 
{[%clk 00:05:13] [%emt 00:00:35]} 40...b5 {[%clk 00:00:57] [%emt 00:04:30]} 
41.axb5 {[%clk 00:04:28] [%emt 00:01:15]} 41...Rxb5 {[%clk 00:44:33] [%emt
00:06:53]} 42.Qa4 {[%clk 00:51:30] [%emt 00:03:29]} 42...Rxb3 {[%clk 00:44:07]
[%emt 00:00:55]} 43.Qxb3 {[%clk 00:51:51] [%emt 00:00:10]} 43...Ba6 {[%clk
00:43:51] [%emt 00:00:46]} 44.Bd4 {[%clk 00:47:30] [%emt 00:04:51]} 44...Bb5 
{[%clk 00:40:47] [%emt 00:03:34]} 45.Qa3 {[%clk 00:47:05] [%emt 00:00:55]} 
45...Bf8 {[%clk 00:40:57] [%emt 00:00:19]} 46.Qa7 {[%clk 00:43:15] [%emt
00:04:21]} 46...Kg8 {[%clk 00:39:20] [%emt 00:02:07]} 47.Bh5 {[%clk 00:41:29]
[%emt 00:02:16]} 1/2-1/2